bitfinex-derivatives/quotes_SOLF0:USTF0_20250720
["timestamp","ask_amount","ask_price","bid_price","bid_amount"]
[1752973601004,3.02209863,179.06,178.97,3.25]
[1752973601197,3.02209863,179.06,178.96,3.02209863]
[1752973601198,3.02209863,179.06,179.03,0.03545555]
[1752973601405,3.02209863,179.06,179.05,3.25]
[1752973601804,8.60379863,179.06,179.05,3.25]
[1752973602000,0.03,179.05,179.04,0.0417312]
[1752973602198,0.03,179.04,179.01,3.25]
[1752973602402,8.60499863,179.03,179.01,3.25]
[1752973602603,8.60499863,179.03,178.92,378.68209863]
[1752973602604,8.60499863,179.03,179.02,3.25]
[1752973603103,3.02209863,179.03,178.97,3.25]
[1752973603505,5.5832,179.02,178.97,3.25]
[1752973604109,5.5832,179.02,178.97,8.8344]
[1752973604302,5.5832,179.02,178.98,3.25]
[1752973604503,3.02209863,179.01,178.98,3.25]
[1752973606004,0.03913382,179.04,178.98,3.25]
[1752973606205,3.02209863,179.03,178.99,3.25]
[1752973607006,8.60479863,179.03,178.99,3.25]
[1752973607410,8.60479863,179.03,178.99,5.5839]
[1752973607709,8.60479863,179.03,179.0,3.25]
[1752973608410,8.6403136,179.03,179.0,3.25]
[1752973609007,5.583,179.02,179.0,3.25]
[1752973609208,3.0576136,179.03,179.02,3.25]
[1752973609507,5.61821497,179.03,179.02,3.25]
[1752973609709,5.5827,179.03,179.02,3.25]
[1752973610909,0.0356806,179.04,178.98,2.99]
[1752973611308,3.02209863,179.06,178.98,2.99]
[1752973611507,5.5822,179.05,179.0,5.5834]
[1752973611709,3.02209863,179.06,178.96,3.02209863]
[1752973611710,0.03987616,179.03,179.01,2.99]
[1752973612307,0.03987616,179.03,179.02,5.583]
[1752973612503,0.03987616,179.03,179.02,8.573]
[1752973616112,0.03987616,179.03,179.02,2.99]
[1752973616316,3.02209863,179.09,179.02,2.99]
[1752973616713,5.5816,179.07,179.04,2.99]
[1752973617307,5.5813,179.08,179.05,2.99]
[1752973617522,6.25222691,179.21,179.05,2.99]
[1752973617714,5.5804,179.11,179.07,2.99]
[1752973618008,1.85307915,179.13,179.07,2.99]
[1752973618406,1.85307915,179.13,179.08,2.99]
[1752973618809,5.579,179.15,179.11,5.5801]
[1752973619116,110.1,179.22,179.12,2.99]
[1752973619410,110.1,179.22,179.13,5.5795]
[1752973619611,1.85307915,179.18,179.15,0.03812802]
[1752973619910,1.85307915,179.18,179.17,2.99]
[1752973619911,5.5782,179.18,179.17,2.99]
[1752973620308,6.25222691,179.3,179.17,2.99]
[1752973620518,1.85307915,179.24,179.17,2.99]
[1752973620706,5.577,179.22,179.17,2.99]
[1752973621016,0.97109052,179.3,179.19,0.04092077]
[1752973621318,6.25222691,179.36,179.21,2.99]
[1752973621520,1.85307915,179.28,179.21,2.99]
[1752973621916,5.5749,179.28,179.27,0.03699207]
[1752973622121,0.97100924,179.33,179.24,2.99]
[1752973622415,5.5767,179.23,179.16,2.99]
[1752973622610,0.97100924,179.33,179.16,2.99]
[1752973622812,1.85307915,179.26,179.19,2.99]
[1752973623013,3.01359681,179.28,179.19,2.99]
[1752973623215,0.97100924,179.33,179.23,3.03274237]
[1752973623411,3.01359681,179.29,179.23,3.03274237]
[1752973623712,5.5751,179.28,179.23,3.03274237]
[1752973623917,3.01359681,179.3,179.23,3.03274237]
[1752973624214,0.97100924,179.33,179.23,3.03274237]
[1752973624215,5.5761,179.24,179.23,0.04274237]
[1752973625114,5.5761,179.24,179.23,3.03274237]
[1752973625315,5.5761,179.24,179.23,0.04274237]
[1752973625714,5.5761,179.24,179.23,4.237e-05]
[1752973625715,8.58969681,179.24,179.23,4.237e-05]
[1752973625915,5.5761,179.24,179.23,4.237e-05]
[1752973626111,8.58969681,179.24,179.23,4.237e-05]
[1752973626820,5.5777,179.19,179.18,2.99]
[1752973627012,3.01359681,179.2,179.09,3.01359681]
[1752973627209,3.01359681,179.2,179.17,2.99]
[1752973627620,5.578,179.18,179.17,2.99]
[1752973627820,3.01359681,179.2,179.08,6.00359681]
[1752973628018,5.5799,179.12,179.09,2.99]
[1752973628812,0.03823422,179.12,179.09,2.99]
[1752973629313,5.5802,179.11,179.1,2.99]
[1752973630022,0.03823422,179.12,179.1,2.99]
[1752973631915,3.01359681,179.19,179.12,2.99]
[1752973632111,109.96,179.26,179.12,2.99]
[1752973632112,3.01359681,179.2,179.12,2.99]
[1752973632521,3.01359681,179.2,179.13,5.5795]
[1752973632726,3.01359681,179.2,179.14,2.99]
[1752973633025,5.5779,179.19,179.14,2.99]
[1752973633518,5.5779,179.19,179.15,0.03603001]
[1752973633718,5.5781,179.18,179.16,2.99]
[1752973634917,5.5778,179.19,179.16,2.99]
[1752973635119,5.5778,179.19,179.17,2.99]
[1752973635416,16.79,179.27,179.16,2.99]
[1752973635617,3.01359681,179.2,179.17,2.99]
[1752973635923,5.5778,179.19,179.17,2.99]
[1752973636317,5.5778,179.19,179.17,3.02541645]
[1752973636723,5.578,179.18,179.17,0.03541645]
[1752973637424,5.5787,179.16,179.13,2.99]
[1752973637918,5.5789,179.15,179.14,2.99]
[1752973638115,0.0379779,179.19,179.15,2.99]
[1752973638423,5.5786,179.16,179.15,2.99]
[1752973640023,0.04099499,179.19,179.16,2.99]
[1752973640222,0.04099499,179.19,179.17,2.99]
[1752973640419,3.01359681,179.2,179.18,3.13]
[1752973640617,5.5777,179.19,179.18,3.13]
[1752973641824,3.05529926,179.2,179.0,6.10938473]
[1752973641825,3.05529926,179.2,179.12,3.13]
[1752973642020,3.01359681,179.14,179.05,3.13]
[1752973642527,5.61776293,179.11,179.05,3.13]
[1752973643425,1.85220114,179.1,179.05,3.13]
[1752973643722,0.03736293,179.11,179.06,5.5815]
[1752973643912,0.03736293,179.11,179.07,3.13]
[1752973644823,0.03736293,179.11,179.08,1.85220114]
[1752973645126,3.01672649,179.19,179.09,3.13]
[1752973646024,8.59472649,179.19,179.13,3.13]
[1752973646227,3.01672649,179.19,179.13,3.13]
[1752973646518,3.01672649,179.19,179.14,0.04006852]
[1752973646924,5.5781,179.18,179.15,3.13]
[1752973647429,3.01672649,179.19,179.15,3.13]
[1752973647827,3.01672649,179.19,179.16,3.13]
[1752973648028,3.01672649,179.19,179.17,3.13]
[1752973648724,5.578,179.18,179.17,3.13]
[1752973648928,3.01672649,179.19,179.17,3.13]
[1752973649134,3.01672649,179.22,179.17,3.13]
[1752973649427,5.5774,179.21,179.15,5.5787]
[1752973649633,5.5774,179.21,179.18,3.13]
[1752973649927,375.2,179.28,179.17,3.13]
[1752973650130,3.01672649,179.24,179.17,3.13]
[1752973650526,5.5767,179.23,179.18,3.13]
[1752973650725,375.2,179.28,179.19,0.03556069]
[1752973650926,3.01672649,179.25,179.2,3.13]
[1752973652031,8.59262649,179.25,179.2,3.13]
[1752973652231,3.01672649,179.25,179.2,3.13]
[1752973652829,148.67164369,179.3,179.2,3.13]
[1752973653030,5.5753,179.27,179.2,8.7072]
[1752973653232,3.01672649,179.29,179.21,3.13]
[1752973653528,3.01672649,179.29,179.22,0.03623707]
[1752973653733,5.5751,179.28,179.23,3.13]
[1752973655331,5.5752,179.27,179.23,3.13]
[1752973655533,3.01672649,179.29,179.23,3.13]
[1752973655934,5.5758,179.26,179.23,3.13]
[1752973656333,3.01672649,179.26,179.22,0.03623707]
[1752973656535,148.67164369,179.3,179.22,0.03623707]
[1752973656536,8.59322649,179.23,179.22,0.03623707]
[1752973657039,148.67164369,179.3,179.22,3.16623707]
[1752973657234,3.01672649,179.26,179.23,3.13]
[1752973657630,5.5761,179.25,179.23,3.13]
[1752973657828,3.01672649,179.26,179.23,3.13]
[1752973658030,3.01672649,179.26,179.22,0.03623707]
[1752973658236,3.01672649,179.26,179.24,3.13]
[1752973658735,5.5758,179.25,179.24,3.13]
[1752973659436,5.5765,179.23,179.22,3.16623707]
[1752973659837,3.01672649,179.26,179.22,3.16623707]
[1752973660034,5.5764,179.24,179.22,0.03623707]
[1752973660229,3.01672649,179.26,179.22,0.03623707]
[1752973660637,3.01672649,179.26,179.23,3.13]
[1752973660935,3.01672649,179.26,179.24,3.13]
[1752973661342,5.5761,179.25,179.22,0.03623707]
[1752973661841,5.5761,179.25,179.23,3.13]
[1752973662044,5.5761,179.25,179.24,3.13]
[1752973662839,5.5756,179.26,179.25,3.13]
[1752973668448,6.25222691,179.32,179.25,3.13]
[1752973668747,1.84926553,179.3,179.27,3.13]
[1752973668940,1.84926553,179.3,179.28,3.13]
[1752973669441,5.5746,179.29,179.28,3.13]
[1752973669941,1.84926553,179.35,179.28,3.13]
[1752973670344,0.97057593,179.39,179.28,3.13]
[1752973670646,1.84926553,179.36,179.28,3.13]
[1752973670839,5.5726,179.36,179.29,7.42356553]
[1752973671044,0.97057593,179.39,179.3,3.32045522]
[1752973671246,1.84926553,179.37,179.3,3.32045522]
[1752973671441,0.97057593,179.39,179.31,3.28]
[1752973671640,1.84926553,179.39,179.31,3.28]
[1752973671843,1.84926553,179.39,179.32,0.03893932]
[1752973672046,5.5719,179.38,179.33,3.28]
[1752973672539,1.84926553,179.39,179.33,3.28]
[1752973673951,5.5722,179.37,179.33,3.28]
[1752973674148,108.14,179.41,179.33,3.28]
[1752973674649,1.84926553,179.39,179.33,3.28]
[1752973675250,5.5723,179.37,179.33,3.28]
[1752973675651,1.84926553,179.39,179.33,3.28]
[1752973676045,5.5733,179.33,179.32,0.03893932]
[1752973676448,5.5733,179.33,179.27,1.84926553]
[1752973676648,5.5738,179.32,179.28,3.28]
[1752973676944,5.5738,179.32,179.31,3.3165926]
[1752973677246,5.5734,179.33,179.31,3.3165926]
[1752973677763,1.84926553,179.35,179.31,3.3165926]
[1752973677764,5.5731,179.34,179.31,3.3165926]
[1752973678045,1.84926553,179.38,179.31,3.3165926]
[1752973678246,1.84926553,179.36,179.31,3.28]
[1752973678447,5.5737,179.32,179.31,3.28]
[1752973680146,7.42296553,179.32,179.31,3.28]
[1752973680353,5.574,179.31,179.3,0.03642104]
[1752973680558,7.42326553,179.31,179.3,0.03642104]
[1752973680758,6.25222691,179.42,179.31,3.28]
[1752973681051,1.84926553,179.34,179.33,3.28]
[1752973681253,12.11030001,179.44,179.33,3.28]
[1752973681555,1.84926553,179.36,179.34,3.28]
[1752973681947,0.97040001,179.44,179.34,3.28]
[1752973682148,1.84926553,179.41,179.34,3.28]
[1752973682850,1.84926553,179.41,179.37,3.28]
[1752973683046,5.5721,179.37,179.36,0.03543221]
[1752973683660,7.42136553,179.37,179.36,0.03543221]
[1752973683955,7.42136553,179.37,179.36,3.31543221]
[1752973684656,5.5721,179.37,179.36,3.31543221]
[1752973686544,0.97040001,179.44,179.36,3.31543221]
[1752973686754,1.84926553,179.41,179.36,3.31543221]
[1752973687153,5.5719,179.38,179.36,3.31543221]
[1752973687853,1.84926553,179.41,179.36,3.31543221]
[1752973689055,5.5718,179.38,179.36,3.31543221]
[1752973689255,1.84926553,179.41,179.38,3.28]
[1752973689455,5.5715,179.39,179.38,3.28]
[1752973690159,5.572,179.38,179.36,3.31543221]
[1752973690350,1.84926553,179.39,179.36,0.03543221]
[1752973690755,5.5721,179.37,179.36,3.31543221]
[1752973692059,1.84926553,179.4,179.36,3.31543221]
[1752973692653,5.5717,179.39,179.36,3.31543221]
[1752973693060,1.84926553,179.4,179.36,3.31543221]
[1752973693261,5.5718,179.38,179.36,3.31543221]
[1752973694260,5.5721,179.37,179.36,3.31543221]
[1752973696162,1.84926553,179.38,179.27,3.28]
[1752973696455,1.84926553,179.35,179.27,3.28]
[1752973696661,7.42216553,179.35,179.3,3.28]
[1752973697258,1.84926553,179.35,179.3,3.28]
[1752973697455,0.03654314,179.34,179.23,482.16]
[1752973697655,7.42326553,179.31,179.25,5.5758]
[1752973697855,7.42326553,179.31,179.26,3.28]
[1752973698053,1.84926553,179.31,179.26,3.28]
[1752973698257,1.84926553,179.27,179.09,4.58203855]
[1752973698459,6.25222691,179.23,179.03,1.84926553]
[1752973698655,5.5765,179.23,179.15,5.5787]
[1752973698860,1.84926553,179.23,179.14,1.84926553]
[1752973699060,1.84926553,179.21,179.13,1.84926553]
[1752973699263,1.84926553,179.21,179.14,3.28]
[1752973699455,1.84926553,179.23,179.14,3.28]
[1752973700457,0.0363863,179.2,179.14,3.28]
[1752973702260,3.01541315,179.18,179.11,2.97]
[1752973702560,3.05179945,179.2,179.11,2.97]
[1752973702761,3.01541315,179.2,179.11,2.97]
[1752973703065,5.5779,179.19,179.11,2.97]
[1752973703565,5.578,179.18,179.11,2.97]
[1752973703860,0.03940755,179.17,179.11,2.97]
[1752973704054,5.582,179.06,179.02,2.24215146]
[1752973704255,3.01541315,179.19,179.02,2.24215146]
[1752973704256,16.79,179.13,179.02,3.01541315]
[1752973704461,6.25222691,179.22,179.03,2.97]
[1752973704664,6.25222691,179.22,178.97,3.01541315]
[1752973704665,3.01541315,179.15,179.05,2.97]
[1752973704965,3.01541315,179.15,179.11,0.03565766]
[1752973705359,3.01541315,179.12,178.91,4.58203855]
[1752973705558,3.01541315,179.12,179.04,2.97]
[1752973705854,3.01541315,179.12,179.01,2.97]
[1752973706466,16.79,179.17,179.01,2.97]
[1752973706664,3.01541315,179.16,179.04,2.97]
[1752973707064,0.03619138,179.11,179.06,3.01541315]
[1752973707264,0.03619138,179.11,179.07,2.97]
[1752973707460,3.01541315,179.18,179.07,2.97]
[1752973707770,0.03578406,179.11,179.07,2.97]
[1752973707965,0.03578406,179.11,179.08,2.97]
[1752973708267,3.01541315,179.16,179.06,2.97]
[1752973708961,5.5792,179.15,179.06,2.97]
[1752973709266,3.01541315,179.16,179.06,2.97]
[1752973709468,8.59621315,179.1,179.04,2.97]
[1752973709666,16.79,179.06,178.9,2.97]
[1752973709866,16.79,179.05,178.8,2.97]
[1752973710057,375.14,179.2,178.8,2.97]
[1752973710058,6.25222691,179.15,178.95,2.97]
[1752973710362,3.01541315,179.07,178.97,3.01541315]
[1752973710568,3.01541315,179.12,179.01,2.97]
[1752973710969,5.5814,179.08,179.01,2.97]
[1752973711161,3.01541315,179.12,179.01,2.97]
[1752973712968,5.5814,179.08,179.01,2.97]
[1752973713171,3.01541315,179.12,179.01,2.97]
[1752973713975,5.5817,179.07,179.01,2.97]
[1752973714170,0.03514769,179.08,179.01,2.97]
[1752973714474,5.582,179.06,179.01,2.97]
[1752973714673,0.03514769,179.08,179.01,2.97]
[1752973715364,0.03514769,179.08,178.78,2.97]
[1752973715365,16.79,179.01,178.78,2.97]
[1752973715567,17.67680029,179.08,178.87,2.97]
[1752973715568,0.03514769,179.08,178.87,2.97]
[1752973715768,3.01541315,179.1,178.96,2.97]
[1752973715969,3.01541315,179.1,179.0,2.97]
[1752973716172,114.62,179.18,179.03,2.97]
[1752973716372,3.01541315,179.14,179.03,2.97]
[1752973716572,3.01541315,179.14,179.03,3.01541315]
[1752973716773,3.01541315,179.17,179.07,2.97]
[1752973717173,5.58,179.12,179.07,2.97]
[1752973717767,0.03590265,179.11,179.07,2.97]
[1752973718378,16.79,179.21,179.1,2.97]
[1752973718379,3.06541315,179.21,179.1,2.97]
[1752973718575,3.06541315,179.24,179.13,2.97]
[1752973718778,3.01541315,179.21,179.13,2.97]
[1752973718980,3.06541315,179.21,179.13,2.97]
[1752973719478,5.5785,179.17,179.13,2.97]
[1752973719675,5.5785,179.17,179.16,2.97]
[1752973720077,5.578,179.18,179.17,2.97]
[1752973720380,3.06541315,179.21,179.15,0.03769137]
[1752973721878,5.5786,179.16,179.15,0.03769137]
[1752973722077,5.5786,179.16,179.15,3.00769137]
[1752973722272,3.06541315,179.21,179.15,3.00769137]
[1752973722578,5.5783,179.17,179.15,3.00769137]
[1752973722777,3.06541315,179.21,179.16,2.97]
[1752973722971,5.5786,179.16,179.15,0.03769137]
[1752973723580,5.5786,179.16,179.15,3.00769137]
[1752973723985,5.5797,179.13,179.12,2.97]
[1752973725580,5.5793,179.14,179.12,2.97]
[1752973725773,5.5793,179.14,179.06,2.97]
[1752973725972,3.01541315,179.16,179.06,2.97]
[1752973726172,0.03581527,179.12,179.06,2.97]
[1752973726982,0.03581527,179.12,179.07,5.5814]
[1752973727178,0.05,179.21,179.08,5.98541315]
[1752973727378,3.01541315,179.25,179.14,2.97]
[1752973728583,3.01541315,179.25,179.19,2.97]
[1752973729782,3.01541315,179.22,179.2,2.97]
[1752973730283,5.5774,179.21,179.2,2.97]
[1752973733486,5.5768,179.22,179.2,2.97]
[1752973734391,3.01541315,179.27,179.2,2.97]
[1752973734589,113.84,179.29,179.2,2.97]
[1752973734785,3.01541315,179.26,179.2,2.97]
[1752973735386,3.01541315,179.26,179.21,0.03545186]
[1752973735891,3.01541315,179.26,179.22,3.15]
[1752973736291,0.09,179.36,179.22,3.15]
[1752973736492,3.01541315,179.3,179.22,3.15]
[1752973736691,0.09,179.34,179.22,3.15]
[1752973736892,3.01541315,179.31,179.22,3.15]
[1752973737186,3.01541315,179.31,179.24,0.03566335]
[1752973737399,3.01541315,179.31,179.25,3.15]
[1752973737604,5.5752,179.28,179.25,3.15]
[1752973737900,0.09,179.34,179.25,3.15]
[1752973738102,3.01541315,179.3,179.25,3.15]
[1752973738294,3.01541315,179.3,179.28,0.04127399]
[1752973738598,8.58971315,179.3,179.29,3.15]
[1752973739297,5.5743,179.3,179.29,3.15]
[1752973741701,5.574,179.31,179.29,3.15]
[1752973741999,0.09,179.4,179.29,3.15]
[1752973742192,3.01541315,179.37,179.29,3.15]
[1752973742394,0.09,179.43,179.29,3.15]
[1752973742797,5.5726,179.36,179.29,3.15]
[1752973743098,3.01541315,179.39,179.35,3.15]
[1752973743298,3.01541315,179.39,179.37,3.15]
[1752973743492,3.01541315,179.38,179.34,0.03907393]
[1752973743697,3.24,179.37,179.26,5.5755]
[1752973743897,6.25541315,179.36,179.19,375.08]
[1752973744098,3.24,179.35,179.23,3.01541315]
[1752973744295,3.24,179.33,179.3,0.03642214]
[1752973744493,8.814,179.31,179.3,0.03642214]
[1752973744698,3.24,179.31,179.19,375.08]
[1752973745001,3.01541315,179.32,179.29,0.04247001]
[1752973745197,6.25541315,179.32,179.29,0.04247001]
[1752973745398,3.24,179.3,179.25,3.15]
[1752973745598,3.24,179.31,179.21,3.15]
[1752973745798,3.24,179.3,179.29,0.03951488]
[1752973746203,3.24,179.3,179.28,3.15]
[1752973746403,3.24,179.4,179.23,3.15]
[1752973746599,3.24,179.4,179.29,3.15]
[1752973746804,5.5727,179.36,179.29,3.15]
[1752973747103,3.01541315,179.38,179.29,3.15]
[1752973747503,3.24,179.29,179.17,4.51236589]
[1752973747699,3.24,179.33,179.14,375.0]
[1752973747906,5.5738,179.32,179.25,3.15]
[1752973748203,3.24,179.36,179.26,3.15]
[1752973748598,3.24,179.36,179.27,3.15]
[1752973748805,0.03735742,179.33,179.27,3.15]
[1752973749200,5.61075742,179.33,179.27,6.16541315]
[1752973749402,0.03735742,179.33,179.28,3.15]
[1752973749598,3.23,179.39,179.31,3.15]
[1752973750100,5.5723,179.37,179.31,3.15]
[1752973750303,3.23,179.39,179.31,3.15]
[1752973750894,3.23,179.39,179.29,3.01541315]
[1752973750895,0.97040001,179.44,179.33,0.03625914]
[1752973751099,6.24541315,179.41,179.34,3.15]
[1752973751296,5.5727,179.35,179.34,3.15]
[1752973751497,3.23,179.41,179.34,3.15]
[1752973751697,5.5727,179.35,179.34,3.15]
[1752973751896,3.01541315,179.39,179.26,3.01541315]
[1752973751897,3.23,179.38,179.26,3.01541315]
[1752973752105,3.23,179.37,179.36,8.433e-05]
[1752973752398,5.5731,179.34,179.33,3.15]
[1752973752802,3.01541315,179.4,179.33,3.15]
[1752973753008,3.23,179.36,179.08,11.1621]
[1752973753304,3.28,179.29,179.19,3.01541315]
[1752973753503,3.28,179.32,179.25,3.01541315]
[1752973753905,5.5746,179.3,179.25,3.01541315]
[1752973754106,0.03735258,179.3,179.25,3.01541315]
[1752973755208,0.03735258,179.3,179.26,3.15]
[1752973756612,0.03735258,179.3,179.27,3.15]
[1752973756907,5.61165258,179.3,179.29,3.15]
[1752973757102,0.03735258,179.3,179.29,3.15]
[1752973759412,5.5732,179.34,179.3,5.5742]
[1752973759607,5.5732,179.34,179.31,3.15]
[1752973759808,150.5005269,179.52,179.26,3.01541315]
[1752973760015,3.28,179.37,179.3,3.15]
[1752973760618,5.5733,179.34,179.3,5.5743]
[1752973760816,3.28,179.37,179.31,3.06]
[1752973761016,3.28,179.37,179.32,0.03630922]
[1752973761211,3.01541315,179.39,179.33,3.06]
[1752973761212,5.573,179.35,179.33,3.06]
[1752973761417,3.05,179.35,179.33,3.06]
[1752973761715,3.05,179.35,179.32,0.03630922]
[1752973761716,3.05,179.34,179.32,3.09630922]
[1752973762218,5.573,179.35,179.32,3.09630922]
[1752973762219,3.01541315,179.39,179.33,3.06]
[1752973762407,3.05,179.34,179.33,3.06]
[1752973762611,3.05,179.34,179.32,0.03630922]
[1752973762912,3.05,179.34,179.32,3.09630922]
[1752973763515,3.05,179.35,179.33,3.06]
[1752973765116,3.05,179.34,179.33,3.06]
[1752973765711,3.05,179.34,179.32,0.03630922]
[1752973765913,3.05,179.35,179.32,0.03630922]
[1752973766117,3.01541315,179.41,179.24,3.06]
[1752973766118,3.05,179.32,179.24,3.06]
[1752973766916,5.5739,179.32,179.21,3.01541315]
[1752973767118,3.05,179.3,179.27,3.06]
[1752973767316,0.03908736,179.28,179.22,3.06]
[1752973768020,0.03908736,179.28,179.26,3.06]
[1752973768221,0.03908736,179.28,179.27,3.06]
[1752973768719,3.05,179.3,179.28,3.06]
[1752973768922,0.0390363,179.29,179.28,3.06]
[1752973770012,3.05,179.35,179.29,3.06]
[1752973770420,3.05,179.35,179.29,8.6346]
[1752973770624,3.05,179.34,179.31,3.06]
[1752973770819,3.05,179.34,179.32,3.06]
[1752973771324,8.6233,179.34,179.32,3.06]
[1752973771623,3.01541315,179.37,179.33,3.06]
[1752973771826,3.05,179.35,179.33,3.06]
[1752973772221,3.05,179.34,179.33,3.06]
[1752973773419,3.05,179.34,179.32,0.03965177]
[1752973773420,3.05,179.33,179.32,0.03965177]
[1752973775016,8.6234,179.33,179.32,0.03965177]
[1752973776625,6.06541315,179.36,179.32,3.09965177]
[1752973776829,3.01541315,179.36,179.32,3.09965177]
[1752973777026,3.05,179.34,179.32,0.03965177]
[1752973777219,3.05,179.33,179.32,0.03965177]
[1752973777628,3.05,179.33,179.3,3.06]
[1752973777829,3.05,179.33,179.31,3.06]
[1752973778127,3.05,179.33,179.31,3.09904164]
[1752973778330,8.6236,179.33,179.31,3.09904164]
[1752973779530,3.05,179.33,179.31,3.09904164]
[1752973780230,8.6234,179.33,179.31,3.09904164]
[1752973780428,5.5734,179.33,179.31,3.09904164]
[1752973780632,3.05,179.32,179.31,0.03904164]
[1752973780926,8.6237,179.32,179.31,0.03904164]
[1752973782133,3.05,179.32,179.31,0.03904164]
[1752973782729,8.6237,179.32,179.31,0.03904164]
[1752973783129,4.8978715,179.33,179.31,0.03904164]
[1752973783333,4.8978715,179.33,179.32,3.06]
[1752973783839,10.4712715,179.33,179.32,3.06]
[1752973784135,3.05,179.33,179.32,3.06]
[1752973784332,4.8978715,179.35,179.33,3.06]
[1752973784536,5.5731,179.34,179.33,3.06]
[1752973784836,5.5731,179.34,179.27,3.06]
[1752973784837,3.05,179.34,179.27,3.06]
[1752973785036,8.6234,179.33,179.32,0.03599016]
[1752973785236,3.05,179.32,179.23,3.06]
[1752973785435,1.8478715,179.31,179.25,3.06]
[1752973785640,5.61006188,179.32,179.27,5.5751]
[1752973785935,1.8478715,179.33,179.28,3.06]
[1752973786139,4.8978715,179.33,179.28,3.06]
[1752973786639,5.61127391,179.32,179.28,3.06]
[1752973787233,3.05,179.31,179.27,5.575]
[1752973787544,5.61127391,179.32,179.31,3.06]
[1752973787930,8.6235,179.33,179.31,3.06]
[1752973788134,9.25654693,179.4,179.22,116.62]
[1752973788135,3.05,179.35,179.33,3.06]
[1752973788833,8.6228,179.35,179.33,3.06]
[1752973789844,3.05,179.34,179.24,3.06]
[1752973790043,3.05,179.34,179.27,3.06]
[1752973790445,5.5732,179.34,179.27,3.04]
[1752973790743,0.03885293,179.32,179.27,3.04]
[1752973791345,3.12,179.31,179.27,3.04]
[1752973792044,3.12,179.31,179.27,5.5752]
[1752973792545,3.12,179.31,179.3,3.04]
[1752973792746,5.574,179.31,179.3,3.04]
[1752973793140,8.694,179.31,179.26,5.5755]
[1752973793345,8.694,179.31,179.29,3.04]
[1752973793747,8.694,179.31,179.26,5.5755]
[1752973793948,8.694,179.31,179.3,3.04]
[1752973794246,5.574,179.31,179.3,3.04]
[1752973794848,8.694,179.31,179.3,3.04]
[1752973796042,8.694,179.31,179.19,6.36855406]
[1752973796043,3.12,179.29,179.24,3.04]
[1752973796341,0.03885293,179.32,179.24,8.616]
[1752973796547,1.8478715,179.37,179.25,3.04]
[1752973796548,8.6945,179.3,179.25,3.04]
[1752973796745,3.12,179.29,179.25,3.04]
[1752973796945,5.61579335,179.3,179.25,8.6159]
[1752973797145,8.73579335,179.3,179.26,3.04]
[1752973798443,3.16129335,179.3,179.28,3.04]
[1752973798748,0.04129335,179.3,179.29,3.04]
[1752973800044,5.61559335,179.3,179.29,3.04]
[1752973800244,3.12,179.29,179.23,3.04]
[1752973800446,0.04129335,179.3,179.25,3.04]
[1752973800648,3.16129335,179.3,179.27,3.04]
[1752973800951,3.16129335,179.3,179.29,3.04]
[1752973801459,8.73569335,179.3,179.29,3.04]
[1752973801749,3.12,179.29,179.23,3.04]
[1752973801948,5.5759,179.25,179.24,3.04]
[1752973802149,1.8478715,179.25,179.2,3.04]
[1752973802349,3.12,179.22,179.2,3.04]
[1752973802554,3.12,179.21,179.2,3.04]
[1752973802856,3.12,179.23,179.21,3.04]
[1752973803054,3.12,179.27,179.21,3.04]